Workbook

Sheet 保健福祉局
A3: 主要事務事業戦略シート
A5: 局・区の使命 | D5: 健康で活力に満ちた社会や高齢者が心豊かに暮らせる長寿社会を創るために、健康づくりの推進、介護予防や生きがいづくりの促進に努め、医療体制及び地域生活支援の充実等を図る。さらに、障害のある人が自立して暮らせる共生社会を創るため、療育体制や相談支援の充実、就労支援や社会参加の促進等を図る。
A6: 事業選択・重点化・見直しの考え方 | D6: 急速な高齢化などに伴い飛躍的に増加する社会保障費に対応するため、既存事業の見直しとともに、地域包括ケアシステムの構築・強化や生活困窮者対策など、持続可能な制度への再構築に取り組みます。
A8: 施策 | D8: 2-1-1 | E8: =IF(D8="","←施策番号を選択してください。",VLOOKUP(D8,W465:X523,2,1)) -> 健康づくりの推進
A9: No. | B9: 新規 | C9: 事務事業（業務）名 | D9: 事務事業（業務）概要 | F9: 現状分析 | J9: 課題抽出 | L9: 今後の方向性 | N9: 所管課
D10: 目標（目的） | E10: 主な内容 | F10: 事務事業（業務）に 必要な行政資源 | H10: コスト換算 （単位：百万円） | I10: 行政コストの合計額 （単位：百万円） | J10: 主な実績・効果 | K10: 分析・評価 | L10: 改善・改革の 手法 | M10: 今後の方向性
D11: 【（事務事業（業務）を行い）誰（何）が、どのような状態になることを目指すのか】 | E11: 【サービス等の提供内容や提供先】 | J11: 【利用者数・件数等】 | K11: 【現在どのような状態で、どのような課題があるのか】
A12: 1 | C12: がん検診等 | D12: がん等疾病を早期発見し早期治療につなげることで、市民の健康保持を図る。 | E12: 〔対象者〕 対象年齢で、受診を希望する市民 〔提供内容〕 がん検診 健康診査 骨粗しょう症検診 歯周病検診 肝炎検診 胃がんリスク検査（ピロリ菌検査 | F12: ヒト | G12: 職員15.80人 （正規8.00人、 非常勤7.80人） | H12: 83 | I12: =SUM(H12:H15) -> 1887 | J12: ・検診等種類追加 胃内視鏡検査 胃がんリスク検査 （ピロリ菌検査） ・受診者数（H28年度） 肺がん： 97,727人 胃がん： 45,146人 大腸がん ：85,019人 子宮がん： 31,595人 乳がん： 34,662人 前立腺がん：7,763人 健康診査： 821人 骨粗しょう： 10,571人 歯周病： 4,277人 肝炎： 9,255人 | K12: ①胃がん対策として、平成29年度から内視鏡検査及び胃がんリスク検査（ピロリ菌検査）が新規に開始となり、円滑な実施のため対策が必要がある。 ②受診環境の整備等行っているが、前年度と比べ受診者数が減少しており、より広報・啓発等に努めていく必要がある。 | L12: ② 課題抑制 | M12: 受診者数増に向けた更なる対策の検討。 | N12: 健康支援課
F13: モノ | G13: － | H13: 0 | I13: ＜参考＞ 前年度決算額
D14: 他都市等の状況 | F14: カネ | G14: 歳出予算額18.2億円 （うち一般財源17.6億円) 【主なもの】 がん検診委託料 16.4億円 | H14: 1804 | I14: 歳出決算額1,666百万円 （うち一般財源1,614百万円)
D15: 一部を除き、健康増進法に基づき全市で実施
A16: 2 | C16: 予防接種 | D16: 予防接種を実施し、市民の発病またはその重症化を防止し、伝染疾病の発生及び蔓延を予防する。 | E16: 〔対象者〕 対象年齢の市民 〔提供内容〕 各種予防接種を、個別接種・集団接種により実施 | F16: ヒト | G16: 職員13.49人 （正規6.49人、 非常勤7.00人） | H16: 70 | I16: =SUM(H16:H18) -> 2465 | J16: ＜H28年度＞ 四種混合：29,384人 日本脳炎：40,505人 ほか | K16: Ａ類疾病に分類されるワクチンの接種率は、 四混 100.6％ ＢＣＧ 100.7％ ヒブ 100.5％ 小肺 100.7％ ＭＲ 95.6％ 水痘 94.7％ とほぼ100％となっており、高い効果が得られている。 法改正により対象疾病の増加に伴い、予診票の審査や支払い等の事務がより煩雑化、増大していることから、効率的に行う必要がある。 | L16: ⑥ ＩＣＴ活用 | M16: 予防接種台帳システムの活用により、接種履歴の管理及び未接種者への勧奨について検討を行う。 | N16: 健康企画課 感染症対策課
F17: モノ | G17: － | H17: 0 | I17: ＜参考＞ 前年度決算額
D18: 他都市等の状況 | F18: カネ | G18: 歳出予算額24.2億円 （うち一般財源24.1億円) 【主なもの】 接種委託料 9.4億円 ワクチン調達委託料 9.1億円 | H18: 2395 | I18: 歳出決算額2,364百万円 （うち一般財源2,363百万円)
D19: 予防接種法に基づき市町村で実施
A20: 3 | C20: 結核対策 | D20: 結核を早期に発見し、発生の予防とまん延の防止に役立て、結核患者の治療完遂を図る。 | E20: 〔対象者〕 結核患者 結核の検診機会の乏しいハイリスク者 〔提供内容〕 DOTS(直接服薬確認療法）事業 ハイリスク者の定期健康診断 結核患者の医療費を市が負担 | F20: ヒト | G20: 職員7.35人 （正規5.75人、 非常勤1.6人） | H20: 51 | I20: =SUM(H20:H22) -> 125 | J20: 支払件数 2067件 (H28年度） | K20: 主な支出である結核患者医療費を減少させるために、ハイリスク者の定期健康診断が重要だが、患者発見率が低いため国の補助金の対象外とされている。 | L20: ② 課題抑制 | M20: 結核患者の生活保護率がたかい傾向にあるため、無料低額宿泊所等ハイリスクな施設を対象とし、健康診断の実施を検討。 | N20: 健康企画課
F21: モノ | G21: － | H21: 0 | I21: ＜参考＞ 前年度決算額
D22: 他都市等の状況 | F22: カネ | G22: 歳出予算額0.9億円 （うち一般財源0.4億円) 【主なもの】 医療費 0.6億円 | H22: 74 | I22: 歳出決算額91百万円 （うち一般財源43百万円)
D23: 都道府県、政令市等で実施
A25: 施策 | D25: 2-1-2 | E25: =IF(D25="","←施策番号を選択してください。",VLOOKUP(D25,W465:X523,2,1)) -> 医療体制の充実
A26: No. | B26: 新規 | C26: 事務事業（業務）名 | D26: 事務事業（業務）概要 | F26: 現状分析 | J26: 課題抽出 | L26: 今後の方向性 | N26: 所管課
D27: 目標（目的） | E27: 主な内容 | F27: 事務事業（業務）に 必要な行政資源 | H27: コスト換算 （単位：百万円） | I27: 行政コストの合計額 （単位：百万円） | J27: 主な実績・効果 | K27: 分析・評価 | L27: 改善・改革の 手法 | M27: 今後の方向性
D28: 【（事務事業（業務）を行い）誰（何）が、どのような状態になることを目指すのか】 | E28: 【サービス等の提供内容や提供先】 | J28: 【利用者数・件数等】 | K28: 【現在どのような状態で、どのような課題があるのか】
A29: 1 | C29: 休日救急医療体制の確保 | D29: 休日等に急な病気やケガをした時に、必要な医療を受けることができるようにする。 | E29: 〔対象者〕 夜間・休日に医療機関を受診する市民 〔提供内容〕 休日救急診療所の運営 病院群輪番制による二次救急医療の維持 | F29: ヒト | G29: 職員1.05人 （正規1.05人） | H29: 10 | I29: =SUM(H29:H31) -> 571 | J29: 【実績】 休日救急診療所受診者数：20,468人（H28年度） 主な協力医療機関数 ≪休日二次（待機含む）≫ 内科：21／小児科：6／外科：12／整形外科：10／産婦人科：4 ≪夜間二次（待機含む）≫ 内科：19／小児科：4／産科：4 【効果】 医療機関が対応できない夜間・休日も医療を提供することができており、安心な市民生活を送る上で必要不可欠な事業となっている。 | K29: 一般の医療機関が開院していない、休日や夜間における救急医療体制の確保は、安全・安心の観点から、必要不可欠な事業であるため、体制を堅持しつつ、当該事業を継続していく。平成28年度における休日救急診療所の実績は、72日診療し、20,468人もの患者が受診している。また救急医療確保対策については、1年間をとおして切れ目なく、二次救急にかかる待機医療機関の確保を行い、市民の健康と安全に大きく寄与した。 【課題】 救急医療体制に参加する医師・医療機関の確保が困難になってきており、今後、現在の体制について検討する必要がある。 | L29: ⑤ 連携・協働 | M29: これまで以上に、市医師会との連携を強化するとともに、協力医療機関の確保先を広げるなどの対応を図っていく。 | N29: 健康企画課
F30: モノ | G30: - | H30: 0 | I30: ＜参考＞ 前年度決算額
D31: 他都市等の状況 | F31: カネ | G31: 歳出予算額5.6億円 （うち一般財源2.4億円) 【主なもの】 休日救急診療所運営委託 3.4億円 救急医療確保対策事業委託 2.2億円 | H31: =ROUNDUP((343460+217050)/1000,0) -> 561 | I31: 歳出決算額545百万円 （うち一般財源300百万円)
D32: ＜休日初期応急診療の実施体制＞ 定点診療（直営・委託・指定管理含む）（９）：北九州、さいたま、京都、大阪、熊本、仙台、新潟、岡山、福岡 医師会が設置し、補助（５）： 横浜、川崎、相模原、名古屋、神戸 外郭団体が設置市、補助（１）：堺 在宅当番制（３）：札幌、静岡、浜松 市民病院が実施（１）：広島
A33: 2 | C33: 保健医療事業団運営補助 | D33: 救急医療の提供などの事業を継続して実施し、地域医療の発展と地域住民の健康増進に寄与する。 | E33: 〔対象者〕 保健医療事業団 〔提供内容〕 健康づくり推進事業などに要する費用の10/10（収入を除く | F33: ヒト | G33: 職員0.20人 （正規0.20人） | H33: 2 | I33: =SUM(H33:H35) -> 277 | J33: 【実績】 補助対象事業 ○健康づくり推進事業（健康フェアの開催） 24団体参加、延7,380人入場 ○救急医療知識の普及啓発 啓発用パンフレットを1,200部作成し、各区消防署が開催する救急フェアで配布 ○看護師養成事業 青葉看護専門学校を運営、H28年度は卒業生40人全員が看護師国家試験に合格 【効果】 保健医療事業団は、看護師養成事業を通じた市の医療体制の基盤づくりのほか、市の救急医療体制の確保など、公益的な事業を実施しており、運営補助金の交付により、こうした事業の安定的な実施が可能となっている。 | K33: 保健医療事業団は、市が委託している休日救急診の運営や二次救急にかかる待機医療機関の確保、そして今後不足することが見込まれている看護師の養成等、公益性が非常に高い事業に貢献していることから、同団の経営の安定は本市にとっても重要で必要性が高い。看護師養成事業においては、卒業生40人全員が国家試験に合格し、33人が本市の医療機関に就職していることから、看護師の市内供給に大きく寄与している。今年度、定員を増加するために施設の改修を行い、本市における看護師確保へさらなる貢献が期待できる。 【課題】 保健医療事業団が策定した経営改善計画に掲げた補助金依存率の改善目標が達成されていない。 | L33: ⑧ その他 | M33: 平成26年度の包括外部監査における指摘を踏まえ、保健医療事業団が策定した経営改善計画に関して、市としても計画の進捗について指導監督を行うとともに、適切な補助金交付を通じて、保健医療事業団の財政基盤の充実に努める。 | N33: 健康企画課
F34: モノ | G34: － | H34: 0 | I34: ＜参考＞ 前年度決算額
D35: 他都市等の状況 | F35: カネ | G35: 歳出予算額2.8億円 （うち一般財源2.8億円) － | H35: 275 | I35: 歳出決算額264百万円 （うち一般財源264百万円)
D36: ○救急診療所を運営する外郭団体は、５政令市にあり、このうち団体に運営補助金しを交付している政令市は１市（堺） ○看護師養成施設を運営する外郭団体は２政令市にあり、このうち団体に運営補助金を交付している政令市は２市
A37: 3 | C37: 総合保健医療センター管理 | D37: 施設利用者に、不具合なく安全、快適に利用してもらう。 | E37: 〔対象者〕 対象施設の利用者 〔提供内容〕 保健所、休日救急診療所、環境保健研究所等の複合施設の管理運営 | F37: ヒト | G37: 職員0.25人 （正規0.25人） | H37: =ROUNDUP((9143*0.25)/1000,0) -> 3 | I37: =SUM(H37:H39) -> 427 | J37: 【実績】 総合保健医療センター H5年3月8日開設 敷地面積 11,831㎡ 延床面積 15,200㎡ 【効果】 施設の適切な管理により、入居する施設（保健所、環境保健研究所、休日救急診療所など）の業務が円滑に実施されている。 | K37: 保健所、休日救急診療所、環境保健研究所と複数の専門的な機能を有する施設の維持管理を一元管理する現体制は、機械設備の点検業務や修理の実施などを集中管理することができるなど、各行政サービスの安定的な実施が確保できるだけでなく、費用面でも効率的な運営を行えるものであることから、引き続き現体制を維持していく。 【課題】 建設から24年が経過し、施設の老朽化、設備の故障が目立つようになっており、業務の円滑な実施に影響が出る可能性があるため、計画的な施設修繕・設備改修が必要である。 | L37: ① 調達改革 | M37: 施設保全業務の一元化の中で、適時適切な施設・設備の更新を進める。 | N37: 健康企画課
F38: モノ | G38: 総合保健医療センター | H38: =ROUNDUP(174003795/1000000,0) -> 175 | I38: ＜参考＞ 前年度決算額
D39: 他都市等の状況 | F39: カネ | G39: 歳出予算額2.5億円 （うち一般財源2.5億円) 【主なもの】 施設管理委託料 2.5億円 | H39: 249 | I39: 歳出決算額224百万円 （うち一般財源214百万円)
D40: ○保健所は全政令市で設置
A42: 施策 | D42: 2-1-3 | E42: =IF(D42="","←施策番号を選択してください。",VLOOKUP(D42,W465:X523,2,1)) -> 食の安全と環境衛生の推進
A43: No. | B43: 新規 | C43: 事務事業（業務）名 | D43: 事務事業（業務）概要 | F43: 現状分析 | J43: 課題抽出 | L43: 今後の方向性 | N43: 所管課
D44: 目標（目的） | E44: 主な内容 | F44: 事務事業（業務）に 必要な行政資源 | H44: コスト換算 （単位：百万円） | I44: 行政コストの合計額 （単位：百万円） | J44: 主な実績・効果 | K44: 分析・評価 | L44: 改善・改革の 手法 | M44: 今後の方向性
D45: 【（事務事業（業務）を行い）誰（何）が、どのような状態になることを目指すのか】 | E45: 【サービス等の提供内容や提供先】 | J45: 【利用者数・件数等】 | K45: 【現在どのような状態で、どのような課題があるのか】
A46: 1 | C46: 食品衛生指導 | D46: 食品衛生に関する各種施策を実施し、市民の食の安全を確保する。 | E46: 〔対象者〕 食品関係事業者や市民 〔提供内容〕 食品営業許可 食品関係施設の監視指導 食鳥検査 食の安全性確保に関する情報の普及啓発 | F46: ヒト | G46: 職員36.20人 （正規33.10人、 非常勤4.00人） | H46: 257 | I46: 265 | J46: 【実績】営業許認可件数 新規1,905件、継続1,570件 食品監視施設数24,768件 食品の試験検査797検体、 22,077項目 衛生講習会：74回 食鳥検査数：6,811千羽 （H28年度） 【効果】 食品衛生指導は、市民の食の安全を確保するために必要不可欠な事業である。 | K46: 【分析】 限られた予算・人員の中で遂行するために、重点的に監視指導を行う施設等を食品衛生監視指導計画で定めて、効率的な監視指導に取り組む必要がある。 【課題】 HACCPを用いた衛生管理手法の法制化及び全業種導入義務化に伴う監視指導体制の整備並びに食品等事業者への普及啓発 営業許可、イベント監視、食鳥検査等の業務が増加している一方で、社会問題となるような食品にまつわる事件が毎年のように発生する中で、業務に従事する専門職員が恒常的に不足している。 また、オリンピック・パラリンピックの開催に伴い、イベントが増加するだけでなく、訪日外国人旅行者の増加も見込まれるため、関係各課と対応等を協議しておく必要がある。 | L46: ⑧ その他 | M46: ・HACCPを用いた衛生管理手法の法制化及び全ての業種導入義務化に伴う監視指導体制の整備 ・国の推進するＨＡＣＣＰを用いた衛生管理手法の食品等事業者への周知及び普及啓発の推進 ・業務に従事する職員の専門性に配慮した研修等を実施し、育成を図るとともに、人員要望を行う。 ・イベントを主催する関係各課と対応等を事前に協議していく。 | N46: 生活衛生課 食品安全課
F47: モノ | G47: － | H47: 0 | I47: ＜参考＞ 前年度決算額
D48: 他都市等の状況 | F48: カネ | G48: 歳出予算額12百万円 （うち一般財源12百万円) 【主なもの】 非常勤賃金 3百万円 【歳入予算額】 保健所手数料（食品・食肉）77百万円 | H48: 8 | I48: 歳出決算額11百万円 （うち一般財源11百万円）
D49: 食品衛生法に基づき、全国の都道府県・政令市等において実施
A50: 2 | C50: 環境衛生指導 | D50: 衛生的で快適な生活環境を確保することにより、市民が安心して生活できるようにする。 | E50: 〔対象者〕 施設利用者や市民 〔提供内容〕 理容・美容・旅館業（民泊を含む）等の環境衛生関係営業施設の監視指導、行政検査 新規確認・許可 違法な民泊等の無許可営業者に対する指導 衛生害虫、飲料水、住居衛生に関する市民相談 | F50: ヒト | G50: 職員17.60人 （正規17.60人） | H50: 152 | I50: =SUM(H50:H52) -> 155 | J50: 環境衛生指導は、衛生的で快適な生活環境を確保するために必要不可欠な事業である。 環境衛生関係施設検査 施設数：6,045件 監視件数：862件 新規確認・許可数：173件 衛生害虫相談 203件 飲料水相談 99件 住居衛生相談 12件 （H28年度） | K50: 環境衛生指導事業の業種は理美容所、クリーニング所、興行場、旅館、公衆浴場、特定建築物、水道等多岐に渡り、加えてデング熱・ジカ熱等蚊媒介感染症発生時の害虫対策、スズメバチの緊急駆除、住宅等を活用して宿泊サービスを提供する施設に対する旅館業法に基づく許可取得の指導など、業務量が増加しており、今後増員を求める必要がある。 また、専門分野に精通した業務に従事する職員の質の向上、中長期的な育成が不可欠である。 | L50: ⑧ その他 | M50: ・環境衛生関係の専門分野に関連した研修等により、職員の質の向上、育成を図る。 ・業務量の増加には人員要望を行う。 | N50: 生活衛生課 環境衛生課
F51: モノ | G51: － | H51: 0 | I51: ＜参考＞ 前年度決算額
D52: 他都市等の状況 | F52: カネ | G52: 歳出予算額3百万円 （うち一般財源3百万円) 【主なもの】 消耗品0.8百万円 | H52: 3 | I52: 歳出決算額3百万円 （うち一般財源3百万円）
D53: 環境衛生関係の各法令に基づき、全国の都道府県・政令市等において実施
A54: 3 | C54: 狂犬病予防・動物愛護 | D54: 動物行政（狂犬病予防・動物愛護）を推進し、動物による危害防止及び人と動物の共生する社会の構築を行う。 | E54: 〔対象者〕 市民、動物取扱業 〔提供内容〕 狂犬病予防業務（犬の登録、注射済票交付、犬の捕獲など） 犬・ねこの引取り 負傷動物の収容 収容動物の譲渡 動物愛護の普及啓発 特定動物の飼養許可 動物取扱業の登録 | F54: ヒト | G54: 職員8.60人 （正規5.60人、 非常勤3.00人） | H54: 54 | I54: =SUM(H54:H56) -> 108 | J54: 犬新規登録：3,760頭 狂犬病予防注射済票交付：32,410頭 犬抑留・収容：29頭 引取り：犬113頭、猫312頭 譲渡：犬65頭、猫393頭 飼い主のいない猫の不妊手術：385頭 （H28年度） 【効果】 狂犬病予防・動物愛護行政は、狂犬病の発生・まん延の防止、動物による危害防止及び人と動物の共生する社会の構築に不可欠な事業である。 | K54: 限られた予算・人員・施設規模の中で遂行するために、ボランティアの協力などにより、業務に優先順位をつけ効率的に取り組む必要がある。 【課題】 動物の殺処分を減らす取組みを推進するため、センターに収容された動物の飼養者への返還や、協力ボランティアを介した新飼養者への譲渡に努めていることなどから、業務量が増加している。 | L54: ⑤ 連携・協働 | M54: ボランティアとの連携・協働による譲渡の促進及び適正飼養の普及啓発 | N54: 生活衛生課 動物保護指導センター 各区地域振興課（犬の登録等事務のみ）
F55: モノ | G55: 動物保護指導センター | H55: =ROUNDUP(22885905/1000000,0) -> 23 | I55: ＜参考＞ 前年度決算額 | L55: ④ アウトソーシング | M55: 民間を活用した動物愛護施設としてのセンターの再整備
D56: 他都市等の状況 | F56: カネ | G56: 歳出予算額33百万円 （うち一般財源33百万円) 【主なもの】 収容動物管理委託料 11百万円 歳入予算額 動物保護指導センター手数料23百万円 | H56: 31 | I56: 歳出決算額30百万円 （うち一般財源30百万円）
D57: 狂犬病予防法・動物の愛護及び管理に関する法律等に基づき、全国の都道府県・政令市等において実施
A59: 施策 | D59: 2-1-3 | E59: =IF(D59="","←施策番号を選択してください。",VLOOKUP(D59,W465:X523,2,1)) -> 食の安全と環境衛生の推進
A60: No. | B60: 新規 | C60: 事務事業（業務）名 | D60: 事務事業（業務）概要 | F60: 現状分析 | J60: 課題抽出 | L60: 今後の方向性 | N60: 所管課
D61: 目標（目的） | E61: 主な内容 | F61: 事務事業（業務）に 必要な行政資源 | H61: コスト換算 （単位：百万円） | I61: 行政コストの合計額 （単位：百万円） | J61: 主な実績・効果 | K61: 分析・評価 | L61: 改善・改革の 手法 | M61: 今後の方向性
D62: 【（事務事業（業務）を行い）誰（何）が、どのような状態になることを目指すのか】 | E62: 【サービス等の提供内容や提供先】 | J62: 【利用者数・件数等】 | K62: 【現在どのような状態で、どのような課題があるのか】
A63: 4 | C63: 環境保健研究所運営 | D63: 市民・行政部門の要望に応える検査を迅速・正確に実施し、結果を提供することにより、安心して生活できるようにする。 | E63: 〔対象者〕 市民及び業務等を有する所管課 〔提供内容〕 国の検査機関等と連携しての、地方衛生研究所でしかできない感染症・食中毒等検査、大気・水質検査、及び臨床検査の検査結果を提供。 | F63: ヒト | G63: 職員34.80人 （正規32.60人、 非常勤2.20人） | H63: 279 | I63: =SUM(H63:H65) -> 369 | J63: 【検査実績】 H28年度 細菌検査 ： 2,080件 ウイルス検査 ： 1,489件 臨床検査等 ： 8,683件 理化学検査 ： 1,602件 大気検査 ： 376件 水質検査 ： 988件 | K63: ・職員の高齢化が進み、定年退職等で熟練した職員が減少。検査は専門性が高く、熟練まで長期間要することから、人材育成が追い付いていない。 ・研究所設置後２４年が経過して検査機器が老朽化、修繕・保守点検等の維持管理費が増加している。また、部品の製造終了により、故障すれば修理不能となる機器もあり、検査に支障をきたす状況が発生している。 | L63: ⑧ その他 | M63: ・試験検査及び調査研究といった業務の特殊性に配慮した研修・異動等の体制を構築し、専門職員の育成を図る。 | N63: 健康企画課 健康科学課
F64: モノ | G64: － | H64: 0 | I64: ＜参考＞ 前年度決算額 | L64: ④ アウトソーシング | M64: ・市が実施している検査について、民間に委託するべきものがないか検討していく。
D65: 他都市等の状況 | F65: カネ | G65: 歳出予算額1.0億円 （うち一般財源0.6億円) 【主なもの】 検査機器点検委託料0.3億円 備品購入費（イオンクロマトグラフ他１台）0.2億円 | H65: 90 | I65: 歳出決算額92百万円 （うち一般財源 百万円） | L65: ⑧ その他 | M65: ・検査機器を計画的に更新して効率的に事業を実施。機器の集約等により維持管理経費等節減を図る。
D66: 全国の都道府県・政令市において地方衛生研究所として設置、実施
A68: 施策 | D68: 2-2-1 | E68: =IF(D68="","←施策番号を選択してください。",VLOOKUP(D68,W465:X523,2,1)) -> 子育て支援の充実
A69: No. | B69: 新規 | C69: 事務事業（業務）名 | F69: 現状分析 | J69: 課題抽出 | L69: 今後の方向性 | N69: 所管課
D70: 目標（目的） | E70: 主な内容 | F70: 事務事業（業務）に 必要な行政資源 | H70: コスト換算 （単位：百万円） | I70: 行政コストの合計額 （単位：百万円） | J70: 主な実績・効果 | K70: 分析・評価 | L70: 改善・改革の 手法 | M70: 今後の方向性
D71: 【（事務事業（業務）を行い）誰（何）が、どのような状態になることを目指すのか】 | E71: 【サービス等の提供内容や提供先】 | J71: 【利用者数・件数等】 | K71: 【現在どのような状態で、どのような課題があるのか】
A72: 1 | C72: 妊婦・乳幼児健康診査 | D72: 妊婦・乳幼児に対して必要な健康診査・相談を行うことにより、安心して子育てできるようにする。 | E72: 〔対象者〕 妊婦、対象月齢の児童 〔提供内容〕 妊婦健診 14回/人 乳児健診 2回/人 ４か月児健診 １歳６か月児健診 ３歳児健診 | F72: ヒト | G72: 職員17.49人 （正規8.36人 非常勤9.13人） | H72: 83 | I72: =SUM(H72:H75) -> 773 | J72: 【実績】 受診者数（H28年度） 妊婦：延83,866件 乳児：延10,897件 4か月児：7,206件 1歳6か月児：7,516件 3歳児：7,559件 【効果】 妊婦・乳幼児健康診査は、妊婦及び乳幼児の健康の保持及び増進を図るために不可欠な事業である。 | K72: 受診率が90％以上の事業であり、疾病を早期発見し必要な治療につなげることで、妊産婦の健康管理及び子どもの健全な成長・発達に寄与している。 また、様々な専門職が、子育てに係る不安等について相談に応じることができている。 妊婦健診に係る事務負担については、負担軽減のため全国一律の制度が望まれる。 | L72: ⑧ その他 | M72: 事務の効率化のため、全国一律の妊婦健診制度の確立について、引き続き国に要望していく。 | N72: 健康支援課
F73: モノ | G73: － | H73: 0 | I73: ＜参考＞ 前年度決算額
D74: 他都市等の状況 | F74: カネ | G74: 歳出予算額8.3億円 （うち一般財源8.3億円) 【主なもの】 妊婦健診委託料 6.2億円 乳児健診委託料 0.8億円 | H74: =773-H72 -> 690 | I74: 歳出決算額773百万円 （うち一般財源773百万円）
D75: 母子保健法に基づき全市で実施
A76: 2 | C76: 不妊対策 | D76: 体外受精や顕微授精などの特定の治療が経済的に受けやすい環境を整え、不妊・不育症などの悩みの解消を図る。 | E76: 〔対象者〕 子供がほしいと望んでいるにも関わらず、子供に恵まれない者 〔提供内容〕 特定不妊治療費助成 助成限度額：１５万円／回 初回助成額上限３０万円／回 更に男性不妊治療を伴う場合１５万円／回まで上乗せ 助成回数：初回助成時の妻年齢が３９歳以下は通算６回、４０～４２歳は通算３回、４３歳以上は助成なし 不妊専門相談：月１回、予約制 医師、助産師との個別相談 | F76: ヒト | G76: 職員1.42人 （正規1.42人) | H76: 13 | I76: =SUM(H76:H79) -> 150 | J76: 【実績】 ・特定不妊治療費助成事業 助成件数（H28年度） 延833件 ・不妊専門相談センター 面接相談（H２8年度） ４０人 ・不妊・不育症及び妊孕性に関す る正しい知識の普及啓発 リーフレットの配布 （成人の集い等） 【効果】 ・高額な不妊治療費の一部を助成することで、経済的な負担を軽減する。 ・不妊や不育症に係る悩みは多種多様であり、個別性が求められるため、個別相談の場は必要である。 ・不妊、不育症及び妊孕性（妊娠しやすさ）について正しい知識を普及啓発することで、早期受診、早期治療及び予防につなげることは、不妊対策及び少子化対策のうえで重要である。 | K76: 制度改正により、初回助成額の増額や男性不妊治療への助成拡充がされたが、特定不妊治療費は高額であり、現行の制度では、その費用の一部助成に過ぎない。 また、特定不妊治療に至るまでの検査・治療をカバーできる助成制度がないため、不妊治療を実施する夫婦にとっては、経済的な負担がまだまだ少なくないというのが現状である。 他都市の状況を踏まえ、千葉市でも独自事業の実施を検討する必要がある。 | L76: ⑧ その他 | M76: 経済的負担が理由で治療を受けることを躊躇したり延期したりしたことがある方は８割を超えるといわれている。また、平成２９年４月１日現在、千葉県内５４市町村中、２６市町村で市独自の助成事業を実施している。これらのことから、本市においても市独自の助成事業について検討を要する。 | N76: 健康支援課
F77: モノ | G77: － | H77: 0 | I77: ＜参考＞ 前年度決算額
D78: 他都市等の状況 | F78: カネ | G78: 歳出予算額１.5億円 （うち一般財源０.７億円) 【主なもの】 医療費 １.５億円 | H78: =150-H76 -> 137 | I78: 歳出決算額150百万円 （うち一般財源75百万円）
D79: 全政令市で実施 県内で独自の助成を実施している自治体は、５４市町村中２２市町村
A80: 3 | C80: 小児慢性特定疾病医療支援 | D80: 特定の疾病についての治療研究を行うことにより、医療の確立と普及が図られ、適切な治療が継続的に受けられるようにする。 | E80: 〔対象者〕 厚生労働大臣が指定した慢性疾病（小児完成特定疾病）にかかっていることにより長期にわたり療養を必要とする児童 〔提供内容〕 医療費を市が負担する。 小児慢性特定疾病治療の研究を推進する。 | F80: ヒト | G80: 職員４.６１人 （正規３.０７人、 非常勤１.５４人） | H80: 36 | I80: =SUM(H80:H83) -> 229 | J80: 小児慢性特定疾病医療支援事業給付件数 延10,294件 （平成28年度） 【効果】 小児慢性特定疾病医療支援は、対象児童が適切な治療を継続的に受けるために必要不可欠な事業である。 | K80: 長期に治療を要する児童のいる家庭にかかる医療費の経済的負担を軽減することにより、児童の保護者が安心して継続的に治療を受けさせることができる。 平成２９年４月１日より新たに対象疾病が追加されたため、周知していく必要がある。 | L80: ⑧ その他 | M80: 制度改正による疾病の追加について周知するため、指定医へ通知及び市ホームページに掲載 | N80: 健康支援課
F81: モノ | G81: － | H81: 0 | I81: ＜参考＞ 前年度決算額
D82: 他都市等の状況 | F82: カネ | G82: 歳出予算額2.4億円 （うち一般財源1.2億円) 【主なもの】 医療費 2.3億円 | H82: =229-H80 -> 193 | I82: 歳出決算額229百万円 （うち一般財源120百万円）
D83: 児童福祉法に基づき、全市で実施
A84: 4 | C84: 未熟児養育医療 | D84: 生後速やかに適切な医療を施し、健全に成長発達ができるようにする。 | E84: 〔対象者〕 出生体重2,000g以下や生活力が特に薄弱と認められる未熟児で、医師が入院養育を必要であると認めたもの 〔提供内容〕 未熟児に行った必要な治療の費用を、保険診療の範囲内で市が負担する。 | F84: ヒト | G84: 職員1.20人 （正規1.20人） | H84: 11 | I84: =SUM(H84:H87) -> 62 | J84: 給付実績 延509件 （平成28年度） 【効果】 未熟児養育医療は、未熟児を安心して育てるために必要不可欠な事業である。 | K84: 高度医療を要する乳児のいる家庭にかかる医療費の経済的負担を軽減することにより、乳児の保護者が安心して継続的に治療を受けさせることができる。 妊婦の高齢化等により、低出生体重児の出生するリスクは高くなることから、当該制度の利用が認められ、給付件数は、昨年度より増加している。 退院後も子育てに係る支援が必要であり、医療機関とは、連絡票を活用し、退院後の継続指導につなげている。 | N84: 健康支援課
F85: モノ | G85: － | H85: 0 | I85: ＜参考＞ 前年度決算額
D86: 他都市等の状況 | F86: カネ | G86: 歳出予算額0.5億円 （うち一般財源0.2億円) 【主なもの】 医療費 0.5億円 | H86: =62-H84 -> 51 | I86: 歳出決算額62百万円 （うち一般財源25百万円）
D87: 母子保健法に基づき全市で実施
A89: 施策 | D89: 2-3-1 | E89: =IF(D89="","←施策番号を選択してください。",VLOOKUP(D89,W465:X523,2,1)) -> 地域福祉の充実
A90: No. | B90: 新規 | C90: 事務事業（業務）名 | D90: 事務事業（業務）概要 | F90: 現状分析 | J90: 課題抽出 | L90: 今後の方向性 | N90: 所管課
D91: 目標（目的） | E91: 主な内容 | F91: 事務事業（業務）に 必要な行政資源 | H91: コスト換算 （単位：百万円） | I91: 行政コストの合計額 （単位：百万円） | J91: 主な実績・効果 | K91: 分析・評価 | L91: 改善・改革の 手法 | M91: 今後の方向性
D92: 【（事務事業（業務）を行い）誰（何）が、どのような状態になることを目指すのか】 | E92: 【サービス等の提供内容や提供先】 | J92: 【利用者数・件数等】 | K92: 【現在どのような状態で、どのような課題があるのか】
A93: 1 | C93: 生活困窮者対策 | D93: 生活困窮者自立支援法に基づき、生活保護に至る前の自立支援策の強化を図り、生活困窮者の自立に向けた支援を行う。 | E93: 〔対象者〕 生活保護に至る前の生活困窮者（学習支援事業は生活保護受給者も対象） 〔提供内容〕 ・自立相談支援事業（市内相談窓口2か所（平成29年7月からは3か所）） ・住居確保給付金 ・就労準備支援事業 ・家計相談支援事業 ・学習支援事業 ・一時生活支援事業 | F93: ヒト | G93: 職員17.30人 (正規3.30人、非常勤14.00人) | H93: 64 | I93: =SUM(H93:H95) -> 200 | J93: 生活困窮者は、就労、家計、健康等の複数の課題等を同時に抱えていることが多く、複合的な支援が必要となるが、経験豊かな相談員が相談に対応することで、問題の立て直し（自立）に向けた着実な支援を行うことができている。 ≪自立相談支援事業実績≫ 【平成28年度実績】 ・新規相談件数 945人 ・相談延べ件数 8,335人 ・相談窓口 2か所 【平成27年度実績】 ・新規相談件数 1,012人 ・相談延べ件数 5,611人 ・相談窓口 2か所 【平成26年度実績】 ・新規相談件数 417人 ・相談延べ件数 2,112人 ・相談窓口 2か所 | K93: ・平成28年度は、前年度同様に年間約1,000件の新規の相談を受け、そのうち121人について社会援護課等の窓口や他制度の利用に繋げることができた。ただし、新規相談件数についての国の目安値（2,640人／年）は、本市の実績を大幅に上回っており、更に多くの潜在的な需要があると考えられる。また、相談窓口を設置していない区からの相談者の割合が少ない実態もある。このため、潜在的な利用者（ひきこもり等）や支援に携わる関係者に対する更なる制度周知を進めるとともに、相談窓口の増設により相談体制を整える必要がある。 ・生活困窮者は、複数の課題等を抱え複合的な支援を必要とする等、縦割りで整備された支援制度では限界がある。このため、住宅、こども、教育等、組織横断的な連携が必要である。 | L93: ⑧ その他 | M93: 生活困窮者は、複数の課題等を抱え、複合的な支援を必要とする等、縦割りで整備された支援制度では対応に限界がある。このため、全庁横断的な組織による包括的な支援体制の構築に向けた取組みを進める。 | N93: 保護課
F94: モノ | G94: － | H94: － | I94: ＜参考＞ 前年度決算額 | L94: ⑧ その他 | M94: 相談窓口を設置していない区からの相談者の割合が少ないため、相談窓口を増設し、相談体制を拡充する。
D95: 他都市等の状況 | F95: カネ | G95: 歳出予算額1.7億円 （うち一般財源0.5億円) 【主なもの】 自立相談支援委託料0.6億円 住居確保給付金0.5億円 | H95: 136 | I95: 歳出決算額122百万円 （うち一般財源7百万円）
D96: 必須事業（自立相談支援事業・住居確保給付金）は、全福祉事務所設置自治体で実施
A97: 2 | C97: 生活保護等 | D97: 健康で文化的な最低限の生活が送れるようにする。 | E97: 〔対象者〕 資産や能力等すべてを活用してもなお生活に困窮する者 〔提供内容〕 生活扶助 医療扶助 住宅扶助 ほか | F97: ヒト | G97: 職員287.30人 （正規232.70人、 非常勤54.60人） | H97: 1913 | I97: =SUM(H97:H99) -> 37860 | J97: 保護人数：20,527人 就労促進事業による就労者数：825人 （H28年度） | K97: 本市では、就労促進事業等の強化により、保護からの脱却実績も増えつつあるものの、平成27年5月に被保護者が2万人を突破して以来、現在も増加傾向が続いている。 また、不正受給額は、長期的には減少傾向にあるものの、今後も効果的な防止対策を講じる必要がある。 なお、平成28年度から2区に非常勤職員を配置し、正規職員が被保護者の支援に特化できるようモデル実施しているが、今後は効果検証を行った上で、事業展開を検討していく必要がある。 ・ケースワーカーの負担軽減（標準数に比べ23人不足） | L97: ③ 整理統合 | M97: 非常勤職員への業務分業化を図り、正規職員が被保護者への支援に集中できるようにする。 | N97: 保護課
F98: モノ | G98: － | H98: － | I98: ＜参考＞ 前年度決算額 | L98: ⑧ その他 | M98: 無料低額宿泊所の事業開始届出の受理を再開し、社会福祉法に基づく立入調査の実施及び施設の設備・運営の適正化を指導する。 また、課税調査や資産調査を徹底するなど不正受給防止策を強化する。
D99: 他都市等の状況 | F99: カネ | G99: 歳出予算額360.9億円 （うち一般財源90.0億円) 【主なもの】 生活保護費 354.0億円 就労促進事業委託料 1.5億円 | H99: 35947 | I99: 歳出決算額35,921百万円 （うち一般財源8,904百万円）
D100: 生活保護法により県・市・福祉事務所設置町村で実施
A101: 3 | C101: 民生委員活動 | D101: 民生委員・児童委員の活動を支援することにより、市民の福祉の増進に寄与する。 | E101: 〔対象者〕全市民 〔提供内容〕 ・民生委員・児童委員が、地域の高齢者福祉、障害者福祉、児童福祉、生活保護等に関する住民の相談相手として、地域の見守りや福祉行政への橋渡しなど、様々な活動を行う。 ・民生委員・児童委員の資質向上のための研修を実施する。 ・千葉市民生委員児童委員協議会が行う調査研究活動、普及・啓発活動等に対して助成する。 ・民生委員・児童委員の活動を補佐する「民生委員協力員」を配置する。 | F101: ヒト | G101: 職員2.51人 （正規2.46人、 非常勤0.05人） | H101: 23 | I101: =SUM(H101:H103) -> 215 | J101: 【現員数（H28年度末）】 民生委員・児童委員 1,449人 民生委員協力員 116人 【民生委員活動件数（H28年度）】 相談・支援活動 38,946件 その他の活動 305,884件 訪問・連絡活動 324,496件 連絡調整回数 120,024回 活動日数 延べ202,915日 | K101: 少子・超高齢化や核家族化が進展する中で、地域の見守りや福祉行政への橋渡しを担う民生委員・児童委員の重要性が増す中で、その負担が増加しており、なり手が不足する問題が顕在化している。 委員定数に占めるH28年度末の充足率：96.5％ | L101: ⑧ その他 | M101: 民生委員協力員の配置を推進する。 | N101: 地域福祉課 こども家庭支援課 各区高齢障害支援課
F102: モノ | G102: － | H102: － | I102: ＜参考＞ 前年度決算額
D103: 他都市等の状況 | F103: カネ | G103: 歳出予算額2.0億円 （うち一般財源2.0億円) 【主なもの】 民生委員活動報償費 1.8億円 | H103: 192 | I103: 歳出決算額191百万円 （うち一般財源191百万円）
D104: 民生委員法に基づき、すべての地方公共団体で実施
A105: 施策 | D105: 2-3-1 | E105: =IF(D105="","←施策番号を選択してください。",VLOOKUP(D105,W465:X523,2,1)) -> 地域福祉の充実
A106: No. | B106: 新規 | C106: 事務事業（業務）名 | D106: 事務事業（業務）概要 | F106: 現状分析 | J106: 課題抽出 | L106: 今後の方向性 | N106: 所管課
D107: 目標（目的） | E107: 主な内容 | F107: 事務事業（業務）に 必要な行政資源 | H107: コスト換算 （単位：百万円） | I107: 行政コストの合計額 （単位：百万円） | J107: 主な実績・効果 | K107: 分析・評価 | L107: 改善・改革の 手法 | M107: 今後の方向性
D108: 【（事務事業（業務）を行い）誰（何）が、どのような状態になることを目指すのか】 | E108: 【サービス等の提供内容や提供先】 | J108: 【利用者数・件数等】 | K108: 【現在どのような状態で、どのような課題があるのか】
A109: 4 | C109: 社会福祉法人千葉市社会福祉協議会運営費補助金 | D109: 社会福祉法人千葉市社会福祉協議会の運営基盤の安定を図り、本市の地域福祉の推進に資する。 | E109: 〔対象者〕 社会福祉法人 千葉市社会福祉協議会 〔提供内容〕 人件費・運営管理費の10/10（他収入を除く） | F109: ヒト | G109: 職員1.40人 （正規1.40人） | H109: 14 | I109: =SUM(H109:H111) -> 454 | J109: 【補助対象】 ・役員 ２人 ・職員 ５０人 ・嘱託職員 ９人 ・運営管理費 | K109: 【現状】 千葉市社会福祉協議会は、地域福祉の推進を目的とする民間組織として社会福祉法に規定されており、本市においても市と連携して様々な施策を展開し、成果をあげている。 【課題】 近年、地域の問題が複雑・多様化する中で、地域福祉の中心的担い手である千葉市社会福祉協議会に求められる役割が増大していることから、千葉市社会福祉協議会の体制強化等について検討する必要がある。 また、職員の年齢構成等に偏りが生じている。 | L109: ⑤ 連携・協働 | M109: 多様化・深刻化する生活課題の解決に向けて、市内の社会福祉法人をはじめとする他機関と地域の福祉課題・生活課題を共有し、協働して解決にあたっていく。 | N109: 地域福祉課
F110: モノ | G110: － | H110: － | I110: ＜参考＞ 前年度決算額
D111: 他都市等の状況 | F111: カネ | G111: 歳出予算額4.4億円 （うち一般財源4.4億円) 【主なもの】 社会福祉協議会運営補助金 4.4億円 ※ 今年度より本部経費を各委託料に間接経費として反映することにより、減額。 | H111: 440 | I111: 歳出決算額522百万円 （うち一般財源522百万円）
D112: 全政令市で実施
A113: 5 | C113: ハーモニープラザ管理運営 | D113: 男女共同参画センター、障害者福祉センター、社会福祉研修センターなどの複合施設『ハーモニープラザ』を、安全で快適に施設利用できるようにすることにより、社会福祉の増進、男女共同参画社会の形成促進を図る。 | E113: 〔対象者〕 対象施設利用者 〔提供内容〕 ・各種設備、機器類の管理・定期点検・修繕 ・館内施設間の連絡・調整、会議開催 ・外部関係機関との連携・調整 ・施設利用に関する周知啓発 ・各種イベント開催 | F113: ヒト | G113: 職員1.10人 （正規1.10人） | H113: 11 | I113: =SUM(H113:H115) -> 380 | J113: H28年度利用実績（来場者数） 157,132人 ※ 下記施設の合計 ・障害者相談センター ・障害者福祉センター ・ことぶき大学校 ・社会福祉研修センター ・男女共同参画センター ・ボランティアセンター ・心配ごと相談所 | K113: 【現状】 施設相互を密に連携させ一体的に運営することにより、社会福祉の増進と男女共同参画社会の形成促進に寄与している。 【課題】 市民ニーズや公共施設としての有用性等を踏まえ、今後、施設で実施する事業や施設全体のあり方を検討する必要がある。 | L113: ⑧ その他 | M113: 市民ニーズや公共施設としての有用性等を踏まえ、今後、施設で実施する事業や施設全体のあり方の見直しを検討する。 | N113: 地域福祉課
F114: モノ | G114: 千葉市ハーモニープラザ | H114: =ROUNDUP(168949900/1000000,0) -> 169 | I114: ＜参考＞ 前年度決算額
D115: 他都市等の状況 | F115: カネ | G115: 歳出予算額2.0億円 （うち一般財源2.0億円) 指定管理委託料 2.0億円 | H115: 200 | I115: 歳出決算額202百万円 （うち一般財源197百万円）
D116: 政令市での実施なし
A117: 6 | B117: ● | C117: 社会福祉研修 | D117: 社会福祉法第２１条に基づき、行政職員及び市内社会福祉事業従事者の資質向上を目的に必要な研修等を行う。 | E117: 〔対象者〕 市内社会福祉事業従事者 及び行政職員、市民 〔提供内容〕 千葉市社会福祉研修センターの運営等 | F117: ヒト | G117: 職員0.60人 （正規0.60人） | H117: 7 | I117: =SUM(H117:H119) -> 58 | J117: H28年度利用実績（受講者数） ・社会福祉施設職員等向け → 33講座（101日間）、1,480人 ・行政職員向け → 6講座（6日間）、206人 ・市民向け → 2講座（52日間）、1,849人 | K117: 【現状】 研修内容等については、本市関係各課の意向や社会福祉法の改正をはじめとする環境変化を踏まえ、適宜見直しを行っている。 【課題】 ハーモニープラザ施設全体のあり方検討を踏まえ、社会福祉研修センターのあり方についても見直しを検討していく。 | L117: ⑧ その他 | M117: ハーモニープラザのあり方検討を踏まえ、実施内容の精査や、センターの効率的な運営について検討する。 | N117: 地域福祉課
F118: モノ | G118: 千葉市社会福祉研修センター | H118: － | I118: ＜参考＞ 前年度決算額
D119: 他都市等の状況 | F119: カネ | G119: 歳出予算額0.5億円 （うち一般財源0.5億円) 【主なもの】 委託料 0.5億円 指定管理委託料 0.5億円 | H119: 51 | I119: 歳出決算額51百万円 （うち一般財源51百万円）
D120: 全政令市で実施
A122: 施策 | D122: 2-4-1 | E122: =IF(D122="","←施策番号を選択してください。",VLOOKUP(D122,W465:X523,2,1)) -> 介護予防と生きがいづくりの促進
A123: No. | B123: 新規 | C123: 事務事業（業務）名 | D123: 事務事業（業務）概要 | F123: 現状分析 | J123: 課題抽出 | L123: 今後の方向性 | N123: 所管課
D124: 目標（目的） | E124: 主な内容 | F124: 事務事業（業務）に 必要な行政資源 | H124: コスト換算 （単位：百万円） | I124: 行政コストの合計額 （単位：百万円） | J124: 主な実績・効果 | K124: 分析・評価 | L124: 改善・改革の 手法 | M124: 今後の方向性
D125: 【（事務事業（業務）を行い）誰（何）が、どのような状態になることを目指すのか】 | E125: 【サービス等の提供内容や提供先】 | J125: 【利用者数・件数等】 | K125: 【現在どのような状態で、どのような課題があるのか】
A126: 1 | B126: ● | C126: 生涯現役応援センター運営 | D126: 高齢者の就労や地域活動など多様な生きがいに対応するため、相談窓口の設置や一元的な情報提供を行い、社会参加を促す拠点として整備する。 | E126: 〔対象者〕 市内在住の概ね60歳以上の者 〔提供内容〕 ・就労やボランティア活動など各種相談対応及び情報提供 ・セミナー・講習会等の企画・運営 ・民間企業・NPO団体等とのイベントの企画・運営 ・高齢者に適した活動先の開拓 など | F126: ヒト | G126: 職員0.50人 （正規0.50人） | H126: =ROUNDUP(9143*0.5/1000,0) -> 5 | I126: =SUM(H126:H128) -> 9.2 | J126: － | K126: － | N126: 高齢福祉課
F127: モノ | G127: － | H127: － | I127: ＜参考＞ 前年度決算額
D128: 他都市等の状況 | F128: カネ | G128: 歳出予算額0.09億円 （うち一般財源0.05億円) 【主なもの】 運営委託料 0.07億円 整備費等 0.02億円 | H128: =9.2-H126 -> 4.2 | I128: －
D129: 政令市では、横浜市、岡山市が設置 県内では、柏市が設置
A130: 2 | C130: 生きがい活動支援通所 | D130: 利用者本人がいつまでも心身ともに健康で、いきいきと自立した生活を送れるようにする。 | E130: 〔対象者〕 在宅の６５歳以上の市民（「要介護」「要支援」認定者を除く） 〔提供内容〕 日常動作訓練（簡単な体操や運動） 教養講座 趣味活動 ほか | F130: ヒト | G130: 職員0.42人 （正規0.42人） | H130: =0.42*9.143 -> 3.84006 | I130: =SUM(H130:H132) -> 225 | J130: 【実績】 H28延利用者数 46,382人 【効果】 「要介護」「要支援」状態に陥ることを予防することで、介護保険サービスの利用が抑制され、介護保険料の負担軽減につながる。 | K130: 利用者の満足度は高いが、新規利用者の割合は低調であり、今後利用者の確保及び、利用者数の増加を図っていく必要がある。 また、高齢者人口が増加する中で、真に必要な介護予防事業のメニューについて検討する必要がある。 | L130: ② 課題抑制 | M130: 介護予防に効果的な事業を検討する。 | N130: 高齢福祉課
F131: モノ | G131: いきいきプラザ・センター計15か所 | H131: =ROUNDUP((16824294+10300318+16641504+24200286+22664598+12631784+121880+3820950+3158320+4522052)/1000000,0) -> 115 | I131: ＜参考＞ 前年度決算額
D132: 他都市等の状況 | F132: カネ | G132: 歳出予算額1.1億円 （うち一般財源1.1億円) 【主なもの】 委託料 1.1億円 （指定管理者制度） | H132: =110-H130 -> 106.15994 | I132: 歳出決算額106百万円（うち一般財源106百万円）
D133: 政令市5市で実施
A134: 3 | C134: 敬老会助成 | D134: 敬老会の開催を通じ、高齢者の外出促進、世代間交流や地域コミュニティの活性化を図る。 | E134: 〔対象者〕 敬老会を開催する団体 〔提供内容〕 満75歳以上の市民を対象に開催した敬老会経費の3/4を補助 （上限：一人あたり3千円） | F134: ヒト | G134: 職員2.70人 （正規1.60人、 非常勤1.10人） | H134: 15 | I134: =SUM(H134:H136) -> 80 | J134: 【実績】 敬老会参加者数：25,892人 （H28年度） 【効果】 高齢者の外出促進、地域コミュニティの活性化に資している。 | K134: 参加者数は増加しており、高齢者の外出促進や地域コミュニティの活性化に有効である。 なお、敬老会は自治会等の自主事業であるため、実施地域等に偏りが生じている。 | L134: ⑧ その他 | M134: 効果的な周知及び周知先の拡大に努めるなどにより、実施地域の拡大に努める。 | N134: 高齢福祉課
F135: モノ | G135: － | H135: － | I135: ＜参考＞ 前年度決算額
D136: 他都市等の状況 | F136: カネ | G136: 歳出予算額0.8億円 （うち一般財源0.8億円) 【主なもの】 補助金 0.8億円 | H136: =80-H134 -> 65 | I136: 歳出決算額62百万円 （うち一般財源62百万円）
D137: 政令市9市で実施
A138: 4 | C138: シルバー人材センター運営補助 | D138: 高齢者が生きがいをもって充実した生活を送れるよう、就業機会を確保し、提供する。 | E138: 〔対象者〕 外郭団体 〔提供内容〕 人件費・施設管理運営経費・事業に要する経費の10/10 | F138: ヒト | G138: 職員0.40人 （正規0.40人） | H138: 4 | I138: =SUM(H138:H140) -> 98 | J138: 【実績】 会員数：2,650人（H28年度末） 受注件数：22,099件 契約金額：11.1億円 【効果】 高齢者の豊かな経験と能力を生かした働く環境づくりを行っている。 | K138: 高齢者人口が増加する中で、元気な高齢者の就業機会の確保、生きがいの充実、健康と福祉の増進を図るために有効である。 そのため民間事業所への訪問活動を強化し、受注開拓に努める必要がある。 | L138: ⑧ その他 | M138: 事業規模の拡大、会員数の増加などの取り組みについて、市の広報媒体を活用するなどして支援していく。 | N138: 高齢福祉課
F139: モノ | G139: シルバー人材センター | H139: =ROUNDUP((156768+1297417)/1000000,0) -> 2 | I139: ＜参考＞ 前年度決算額
D140: 他都市等の状況 | F140: カネ | G140: 歳出予算額1億円 （うち一般財源1億円) － | H140: =96-H138 -> 92 | I140: 歳出決算額97百万円（うち一般財源97百万円）
D141: 政令市20市で実施 （全政令市で実施）
A142: 5 | C142: ことぶき大学校運営 | D142: 高齢者が生きがいをもって充実した生活を送れるよう、講座を開催するとともに、学習成果を地域活動に還元できるよう支援する。 | E142: 〔対象者〕 対象施設の利用者 〔提供内容〕 ボランティア実践コース 創造活動コース | F142: ヒト | G142: 職員0.30人 （正規0.30人） | H142: 3 | I142: =SUM(H142:H144) -> 40 | J142: 【実績】 入学生数185人 （H28年度） 【効果】 卒業後、地域活動やボランティアに参加している方々が増えている。 | K142: 高齢者が生きがいをもって充実した生活を送れるとともに、学習成果を地域活動等に還元するボランティア活動を行う人材を育成していることから、これからの高齢化社会において有効である。 一方、各学科とも定員割れが生じており、更なる周知が必要である。 | L142: ⑦ 資産活用 | M142: 学科の実施内容・方法を見直し、施設利用の効率性を向上させる。 | N142: 高齢福祉課
F143: モノ | G143: － | H143: － | I143: ＜参考＞ 前年度決算額
D144: 他都市等の状況 | F144: カネ | G144: 歳出予算額0.4億円 （うち一般財源0.4億円) － | H144: =40-H142 -> 37 | I144: 歳出決算額32百万円 （うち一般財源28百万円）
D145: 政令市11市で実施
A146: 6 | C146: 老人福祉センター管理運営 | D146: いきいきプラザ・センターでの各種相談や健康増進事業、レクリエーション活動を通じ、高齢者の生きがいや健康を増進してもらう。 | E146: 〔対象者〕 60歳以上の高齢者 〔提供内容〕 開館時間 午前9時から午後5時15分まで 休館日 年末年始（12月29日から1月3日まで） 使用料 無料（市外居住者は100円） 入浴料 100円（市外居住者は200円） | F146: ヒト | G146: 職員0.70人 （正規0.70人） | H146: =ROUNDUP(0.7*9.143,0) -> 7 | I146: =SUM(H146:H148) -> 645 | J146: 【実績】 H28年間利用者数 プラザ ：459,937人 センター：186,024人 【効果】 高齢者の健康増進や生きがいある生活が送れるよう支援している。 | K146: 年間60万人以上の高齢者が利用し、健康増進や生きがいのある生活が送れるための役割を担っているが、公共施設の統廃合が進められる中、今後のあり方について検討が必要となっている。 | L146: ⑦ 資産活用 | M146: 今後のあり方について、介護予防や地域リーダー育成など、新たな取り組みを検討する。 | N146: 高齢福祉課
F147: モノ | G147: いきいきプラザ・センター等計16か所 | H147: =ROUNDUP((16824294+10300318+16641504+24200286+22664598+12631784+121880+3820950+3158320+4522052)/1000000,0) -> 115 | I147: ＜参考＞ 前年度決算額
D148: 他都市等の状況 | F148: カネ | G148: 歳出予算額5.3億円 （うち一般財源5.1億円) 【主なもの】 指定管理等委託料 5.1億円 | H148: =530-H146 -> 523 | I148: 歳出決算額540百円 (うち一般財源523百万円）
D149: 神戸市以外は、老人福祉センターを設置
A150: 7 | C150: 老人クラブ育成 | D150: 高齢者がレクリエーション活動に参加し、健康で豊かな生活が営めるように老人クラブの指導育成を行う。 | E150: 〔対象者〕 ・単位老人クラブ ・市・区老人クラブ連合会 〔提供内容〕 【単位老人クラブ】 10人～29人：19,200円 30人：5万円 31人以上：5万円＋（会員数-30人）×500円（上限10万円） 【区老連・市老連】 活動促進事業等の経費の10/10 | F150: ヒト | G150: 職員1.87人 （正規0.92人、 非常勤0.95人） | H150: 9 | I150: =SUM(H150:H152) -> 40 | J150: 【実績】 老人クラブ数：273団体 （H28年度末） 【効果】 少子高齢化の中で老人クラブの活動意義は高まっている。 | K150: 高齢者人口が増加する中で、元気な高齢者が地域づくりの担い手となっていくことが求められており、老人クラブが行う活動はこれからの社会においてますます重要になると考えられることから、引き続き支援を行うことは必要である。 また、老人クラブ数、参加人数とも減少していることが課題である。 | L150: ⑧ その他 | M150: 活動内容の充実やＰＲを積極的に行い、会員の増加を図っていく。 | N150: 高齢福祉課
F151: モノ | G151: － | H151: － | I151: ＜参考＞ 前年度決算額
D152: 他都市等の状況 | F152: カネ | G152: 歳出予算額0.4億円 （うち一般財源0.2億円) 【主なもの】 単位老人クラブ補助金 0.2億円 市老連補助金 0.2億円 | H152: =40-H150 -> 31 | I152: 歳出決算額36百万円 （うち一般財源21百万円）
D153: 政令市20市で実施 （全政令市で実施）
A155: 施策 | D155: 2-4-2 | E155: =IF(D155="","←施策番号を選択してください。",VLOOKUP(D155,W465:X523,2,1)) -> 地域生活支援の充実（高齢者）
A156: No. | B156: 新規 | C156: 事務事業（業務）名 | D156: 事務事業（業務）概要 | F156: 現状分析 | J156: 課題抽出 | L156: 今後の方向性 | N156: 所管課
D157: 目標（目的） | E157: 主な内容 | F157: 事務事業（業務）に 必要な行政資源 | H157: コスト換算 （単位：百万円） | I157: 行政コストの合計額 （単位：百万円） | J157: 主な実績・効果 | K157: 分析・評価 | L157: 改善・改革の 手法 | M157: 今後の方向性
D158: 【（事務事業（業務）を行い）誰（何）が、どのような状態になることを目指すのか】 | E158: 【サービス等の提供内容や提供先】 | J158: 【利用者数・件数等】 | K158: 【現在どのような状態で、どのような課題があるのか】
A159: 1 | B159: ● | C159: 地域支え合い型訪問支援・通所支援 | D159: 千葉市介護予防・日常生活支援総合事業実施要綱等に基づき、地域住民等が要支援者等に対して行う訪問型・通所型の支援に対して、助成を行う。 | E159: 〔対象者〕 地域において活動しているNPO法人やボランティア等 〔提供内容〕 買い物、調理等の生活支援サービスや、体操教室・サロン等を通じた日中の居場所づくり | F159: ヒト | G159: 職員0.22人 （正規0.22人） | H159: 2 | I159: =SUM(H159:H161) -> 3 | J159: ━ | K159: 平成２９年４月から事業開始。地域包括ケアシステムにおける介護予防の強化と生活支援サービスの多様化のため、登録団体数を増やしていく必要がある。（２登録団体：H29.9.22時点） | L159: ⑧ その他 | M159: 事業を実施してく中で登録団体を含めた関係機関の意見等も参考に修正を行っていく。 | N159: 高齢福祉課
F160: モノ | G160: － | H160: － | I160: ＜参考＞ 前年度決算額
D161: 他都市等の状況 | F161: カネ | G161: 歳出予算額0.01億円 （うち一般財源0.002億円) 【主なもの】 補助金 0.01億円 | H161: 1 | I161: ━
D162: 政令市では、訪問を８市 通所を４市で実施
A163: 2 | C163: 社会福祉施設整備助成（小規模多機能施設・定期巡回サービス） | D163: 小規模多機能型居宅介護事業所や定期巡回・随時対応サービス事業所などの整備の促進を図る。 | E163: 〔対象者〕 市内に地域密着型サービスを整備る法人 〔提供内容〕 小規模多機能型居宅介護事業費の建設費助成 32,000千円 他 ほか | F163: ヒト | G163: 職員1.30人 （正規1.30人） | H163: 11 | I163: =SUM(H163:H165) -> 349 | J163: H28年度末現在 小規模多機能型 16 定期巡回・随時対応 10 | K163: 人員配置や採算性が障壁となり、参入が進まないため、参入コスト及び初期運営コストの低減を図るため、建設費等補助を行い、参入を促す必要がある | L163: ⑧ その他 | M163: 整備の進まない日常生活圏域等において、建設費等補助を行い、参入を促す。 | N163: 介護保険事業課
F164: モノ | G164: － | H164: － | I164: ＜参考＞ 前年度決算額
D165: 他都市等の状況 | F165: カネ | G165: 歳出予算額3.4億円 （うち一般財源0億円) 【主なもの】 補助金 3.4億円 | H165: 338 | I165: 歳出決算額78百万円 （うち一般財源0百万円)
D166: 全政令市で実施
A167: 3 | C167: 緊急通報システム | D167: 安否の確認や健康などの各種相談を行い、緊急時に対応する。 | E167: 〔対象者〕 60歳以上のひとり暮らし高齢者等 〔提供内容〕 簡単な操作で、民間受信センターに通報のできる緊急通報装置を高齢者の自宅へ設置し、急病等の緊急時に対応するとともに、定期的な安否確認や健康相談を行う。 | F167: ヒト | G167: 職員1.31人 （正規1.31人） | H167: 10 | I167: =SUM(H167:H169) -> 109 | J167: （平成28年度） 利用者数 3,306人 | K167: 利用者は増加傾向にある。 また、現委託業者との契約期間は、平成31年度までであるため、次期契約にあたり、プロポーザルを実施する。業者変更、機器の入れ替えが必要となる場合がある。 | L167: ⑧ その他 | M167: 平成30年度にプロポーザルを実施する。 | N167: 高齢福祉課
F168: モノ | G168: － | H168: － | I168: ＜参考＞ 前年度決算額
D169: 他都市等の状況 | F169: カネ | G169: 歳出予算額1.0億円 （うち一般財源1.0億円) 【主なもの】 委託料 1.0億円 | H169: 99 | I169: 歳出決算額85百万円 （うち一般財源85百万円)
D170: 全政令市で実施
A171: 4 | C171: おむつ給付等 | D171: 高齢者の介護を社会全体で支え、できる限り住み慣れた地域で安心して生活ができるようにする。 | E171: 〔対象者〕 「要介護」認定者で常時失禁状態にある者 〔提供内容〕 ＜おむつ給付等の基準額＞ 要介護１～３ 4,000円 要介護４・５ 8,000円 ＜利用者負担＞ 購入費用の１割 （上限：基準額の１割） | F171: ヒト | G171: 職員2.47人 （正規2.47人） | H171: 18 | I171: =SUM(H171:H173) -> 411 | J171: （平成28年度） 利用者人数 延 74,753人 | K171: 介護保険特別会計地域支援事業の上限以上の支出となる可能性が高い。 地域支援事業から除外される可能性がある。 | L171: ⑧ その他 | M171: 今後、高齢者人口の増加による各種事業の増大が見込まれる中で、当事業の見直しを検討する。 | N171: 高齢福祉課
F172: モノ | G172: － | H172: － | I172: ＜参考＞ 前年度決算額
D173: 他都市等の状況 | F173: カネ | G173: 歳出予算額4.0億円 （うち一般財源0.7億円) 【主なもの】 扶助費 4.0億円 | H173: 393 | I173: 歳出決算額317百万円 （うち一般財源62百万円)
D174: 政令市１８市で実施
A175: 5 | C175: 三世代同居等支援 | D175: 三世代家族の形成を促進し、高齢者の孤立を防ぐとともに、家族の絆の再生を図るため、離れて暮らしていた高齢者世帯と子世帯が同居または近居をする際の費用を補助する。 | E175: 〔対象者〕 三世代の高齢者または子 〔提供内容〕 住宅の新築・購入・増改築・賃貸借・転居にかかる費用（上限50万円）ほか | F175: ヒト | G175: 職員0.45人 （正規0.45人） | H175: 4 | I175: =SUM(H175:H177) -> 30 | J175: （平成28年度） 1年目助成 45世帯 2､3年目助成 22世帯 | K175: 子世帯の千葉市への移住等を促進するため、事前手続きを前提としており、対象となる市外在住者への効果的な周知に工夫を要する。 | L175: ⑧ その他 | M175: 市外の子世帯に向けた有効な周知方法を検討する。 | N175: 高齢福祉課
F176: モノ | G176: － | H176: － | I176: ＜参考＞ 前年度決算額
D177: 他都市等の状況 | F177: カネ | G177: 歳出予算額0.3億円 （うち一般財源0.3億円) 【主なもの】 補助金 0.3億円 | H177: 26 | I177: 歳出決算額26百万円
D178: 政令市では、類似事業を５市で実施
A179: 6 | C179: 老人福祉施設措置費 | D179: 家庭や経済的な理由で、居宅生活ができない方の入所費用を所得に応じた額とするとともに、養護老人ホームの安定経営を図るために、運営費を補助する。 | E179: 〔対象者〕 養護老人ホームを設置経営する法人 〔提供内容〕 措置入所者の介護サービス利用料への補助 | F179: ヒト | G179: 職員1.23人 （正規1.23人） | H179: 9 | I179: =SUM(H179:H181) -> 379 | J179: （平成28年度） 延 1814人 | K179: 措置費については、国の技術的助言に基づいて算定しているが、今後新たな技術的助言は出ない状況である。 | N179: 高齢福祉課
F180: モノ | G180: － | H180: － | I180: ＜参考＞ 前年度決算額
D181: 他都市等の状況 | F181: カネ | G181: 歳出予算額3.7億円 （うち一般財源2.8億円) － | H181: 370 | I181: 歳出決算額347百万円 （うち一般財源267万円）
D182: 老人福祉法により全政令市で実施
A183: 7 | C183: 軽費老人ホームサービス提供費補助 | D183: 日常生活の自立が不安で、家族の援助を十分に受られない方の入居費用を所得に応じた額とするとともに、軽費老人ホームの安定経営を図るため運営費を補助する。 | E183: 〔対象者〕 軽費老人ホームを設置経営する法人 〔提供内容〕 運営に要したサービス提供費支出額と、国が定めた所得階層ごとのサービス提供費本人徴収額との差額の10/10 | F183: ヒト | G183: 職員0.35人 （正規0.35人） | H183: 3 | I183: =SUM(H183:H185) -> 609 | J183: H28年度末 18施設 利用者人数（延べ）9,560人 | K183: 国の施設運営基準を引き継ぎ、所得階層に応じた自己負担額を軽減することにより、低所得の高齢者の住まいのセーフティーネットを担っている。 財源が一般財源化されており、補助前提の施設運営であり、施設存続のために今後も当該補助に必要性がある。 | N183: 介護保険事業課
F184: モノ | G184: － | H184: － | I184: ＜参考＞ 前年度決算額
D185: 他都市等の状況 | F185: カネ | G185: 歳出予算額6.1億円 （うち一般財源6.1億円) 【主なもの】 補助金 6.1億円 | H185: 606 | I185: 歳出決算額 589百万円 （うち一般財源 598百万円）
D186: 全政令市で実施
A187: 8 | C187: 民間社会福祉施設整備資金借入金補助 | D187: 市内の民間社会福祉施設の整備の促進及び経営の健全化並びに入所者等の処遇の向上を図る。 | E187: 〔対象者〕 養護老人ホーム等を設置経営する法人 〔提供内容〕 施設整備のために独立行政法人福祉医療機構から借り入れた施設整備資金の元金償還に要する経費の3/4 | F187: ヒト | G187: 職員0.15人 （正規0.15人） | H187: 2 | I187: =SUM(H187:H189) -> 58 | J187: H28年度末 14法人 | K187: 従来から補助を行っている対象施設の法人に対して、補助を行っているが、現在は、新規の補助の適用を休止している。 | N187: 介護保険事業課
F188: モノ | G188: － | H188: － | I188: ＜参考＞ 前年度決算額
D189: 他都市等の状況 | F189: カネ | G189: 歳出予算額0.6億円 （うち一般財源0.6億円) 【主なもの】 補助金 0.6億円 | H189: 56 | I189: 歳出決算額 55百万円 （うち一般財源 55百万円）
D190: ７政令市で実施
A191: 9 | C191: 民間社会福祉施設職員設置助成 | D191: 職員の雇用経費を補助することにより、職員確保による負担軽減や、入居者にきめ細やかな対応を図る等、質量両面でのケアの向上が確保される。 | E191: 〔対象者〕 養護老人ホーム及び経費老人ホームを経営する民間社会福祉法人 〔提供内容〕 国が定める職員配置基準を超えて配置された職員雇用経費：2,487千円/人 | F191: ヒト | G191: 職員0.30人 （正規0.30人） | H191: 3 | I191: =SUM(H191:H193) -> 65 | J191: H28年度末 15施設、24人 | K191: 介護保険適用外施設にて、千葉県及び県内中核市においても同様の補助事業を実施している。 地域間格差が生じないように千葉県等の動向を注視していく必要性がある。 | N191: 介護保険事業課
F192: モノ | G192: － | H192: － | I192: ＜参考＞ 前年度決算額
D193: 他都市等の状況 | F193: カネ | G193: 歳出予算額0.7億円 （うち一般財源0.7億円) 【主なもの】 補助金 0.7億円 | H193: 62 | I193: 歳出決算額 58百万円 （うち一般財源 58百万円）
D194: 県及び中核市で実施
A196: 施策 | D196: 2-4-3 | E196: =IF(D196="","←施策番号を選択してください。",VLOOKUP(D196,W465:X523,2,1)) -> 介護保険サービスの充実
A197: No. | B197: 新規 | C197: 事務事業（業務）名 | D197: 事務事業（業務）概要 | F197: 現状分析 | J197: 課題抽出 | L197: 今後の方向性 | N197: 所管課
D198: 目標（目的） | E198: 主な内容 | F198: 事務事業（業務）に 必要な行政資源 | H198: コスト換算 （単位：百万円） | I198: 行政コストの合計額 （単位：百万円） | J198: 主な実績・効果 | K198: 分析・評価 | L198: 改善・改革の 手法 | M198: 今後の方向性
D199: 【（事務事業（業務）を行い）誰（何）が、どのような状態になることを目指すのか】 | E199: 【サービス等の提供内容や提供先】 | J199: 【利用者数・件数等】 | K199: 【現在どのような状態で、どのような課題があるのか】
A200: 1 | C200: 介護サービス給付費等 | D200: 高齢者の介護を社会全体で支え、保健・医療・福祉サービスを総合的・効果的に受けられるようにする。 | E200: 〔対象者〕 要介護等被保険者 〔提供内容〕 訪問介護（ヘルパー）等のサービスを受けた際に、かかった費用の原則として９割を保険給付する（本人は１割を負担）。 | F200: ヒト | G200: 職員151.1人 （正規67.2人、 非常勤83.9人） | H200: 803 | I200: =SUM(H200:H202) -> 71040 | J200: 被保険者数：242,449人 要介護認定者数：39,176人 サービス利用者数：36,098人 （H29.3.31現在） 保険料徴収率：98.80% （H27年度） 【効果】 要介護状態等となった者に対し、有する能力に応じ自立した日常生活を営むことができるよう、必要なサービスに係る保険給付を行い、市民の福祉の増進を図ることができた。 | K200: 要介護者等が自立した日常生活を営むのに必要な訪問介護等のサービスに係る保険給付を行っており、制度の実施は有効かつ必要である。 一方、急速な高齢化の進展に伴い、要介護認定者やサービス利用者が増加しており、要介護認定申請に対応するための介護認定調査員の確保や認定までに要する日数の長期化、介護サービス給付費の増加が課題である。 また、介護人材の確保も喫緊の課題であり、団塊の世代がすべて７５歳以上を迎える平成３７年には、介護職員が約４千人不足すると見込まれている。 | L200: ⑤ 連携・協働 | M200: 総合事業について、サービスの充実を図るとともに、結果としての費用の抑制につなげる。 | N200: 介護保険管理課
F201: モノ | G201: － | H201: － | I201: ＜参考＞ 前年度決算額 | L201: ④ アウトソーシング | M201: 急増している要介護認定申請者に対し、円滑に認定作業を実施する。
D202: 他都市等の状況 | F202: カネ | G202: 歳出予算額710.4億円 （うち一般財源103.4億円) 【主なもの】 介護サービス給付費 611.5億円 介護予防サービス給付費 23.9億円 | H202: 70237 | I202: 歳出決算額606.5億円 （うち一般財源88.4億円） | L202: ⑤ 連携・協働 | M202: 介護人材の不足解消に向けて、必要な対策を実施していく。
D203: 介護保険法により全自治体で実施
A204: 2 | C204: 特別養護老人ホーム整備費助成 | D204: 特別養護老人ホームの整備の促進を図る。 | E204: 〔対象者〕 市内に特別養護老人ホームを整備する社会福祉法人等 〔提供内容〕特別養護老人ホームの建設費等の助成：3,702千円/床 ショートステイ：1,762千円/床 | F204: ヒト | G204: 職員0.90人 （正規0.90人） | H204: 8 | I204: =SUM(H204:H206) -> 969 | J204: 広域型特別養護老人ホーム 創設 3施設 | K204: 特別養護老人ホームの待機者数が1500人を超えており、整備の必要性は依然高い。 建設に多額の費用がかかることから行政がその整備に助成することで整備を促していく必要がある。 | N204: 介護保険事業課
F205: モノ | G205: － | H205: － | I205: ＜参考＞ 前年度決算額
D206: 他都市等の状況 | F206: カネ | G206: 歳出予算額10.0億円 （うち一般財源0.1億円) 【主なもの】 補助金 10.0億円 | H206: 961 | I206: 歳出決算額 994百万円 （うち一般財源 4百万円）
D207: 全政令市で実施
A208: 3 | C208: 地域包括支援センター | D208: 地域住民の心身の健康の保持及び生活の安定のために必要な援助を行うことにより、地域住民の保健医療の向上及び福祉の増進を包括的に支援する。 | E208: 〔対象者〕 65歳以上の要介護者及び要支援者並びに要援護となるおそれがある者並びにその家族等 〔提供内容〕 地域に地域包括支援センターを設置。概ね高齢者3000～6000人に包括３職種各1名を配置し、以下の業務等を行う。 ①包括的支援事業（介護予防ケアマネジメント、総合相談、権利擁護、包括的・継続的ケアマネジメント支援） ②介護予防事業（介護予防普及啓発、地域介護予防活動支援） | F208: ヒト | G208: 職員11.4人 （正規8.2人） | H208: 71 | I208: =SUM(H208:H210) -> 967 | J208: 【H29.4.1～】 ・あんしんケアセンター：30か所 ※出張所2か所を含む ・6区中、3区（花見川区・稲毛区・緑区）の保健福祉センター高齢障害支援課に包括3職種（保健師・社会福祉士・主任ケアマネジャー）を配置し、あんしんケアセンター（地域包括支援センター）の支援体制整備を行っている。※花見川区においては、現在欠員により、保健師のみの体制。 【H28年度実績】 ・総合相談延人数29,039人 ・総合相談延件数40400件 ・地域ケア会議を定期開催し、地域課題の共有、ネットワークの構築を図った。 ・地域ケア会議開催回数 （内訳） 個別事例検討 69回 地域課題発見、検討188回 合計257回 ・資質向上・平準化・関係機関との連携を図る為、会議・研修を実施。 会議開催数 6回 研修開催数 23回 | K208: 【あんしんケアセンターの運営】 ・センターの賃料に一律上限を設けており、事業所の負担が大きい。 【あんしんケアセンター支援体制の整備】 ・6区中、残りの3区（中央区・若葉区・美浜区）にも配置し、全区であんしんケアセンター支援体制整備を行う。 【地域づくりの促進】 ・地域ケア会議の充実により地域づくりの促進を図る。 | L208: ③ 整理統合 | M208: 【あんしんケアセンターの運営】 実態調査の上で、委託料の算定方法の見直しを検討。 | N208: 地域包括ケア推進課
F209: モノ | G209: － | H209: － | I209: ＜参考＞ 前年度決算額 | L209: ⑤ 連携・協働 | M209: 【あんしんケアセンター支援体制の整備】 平成30年度に、残りの3区にも包括三職種を配置する必要がある。また、後方支援の在り方について、随時検討を行う。
D210: 他都市等の状況 | F210: カネ | G210: 歳出予算額9.1億円 （うち一般財源1.7億円) 委託料 9.0億円 | H210: 896 | I210: 歳出決算額730百万円 （うち一般財源137百万円) | L210: ⑤ 連携・協働 | M210: 【地域づくりの促進】 自立支援に資するケアマネジメントの支援のため、介護予防プラン担当者が、多職種から専門的な助言を得られる体制を構築するとともに、事例を通して地域課題を抽出する。 地域課題の解決に向けては、別途、随時、地域住民と会議を開催し、地域づくりを通して解決を図る。
D211: すべての政令市で設置（介護保険法第115条）
A213: 施策 | D213: 2-5-1 | E213: =IF(D213="","←施策番号を選択してください。",VLOOKUP(D213,W465:X523,2,1)) -> 療育体制と相談支援の充実
... 222 more rows
